bitfinex-derivatives/quotes_SOLF0:USTF0_20250224
["timestamp","ask_amount","ask_price","bid_price","bid_amount"]
[1740393398903,1.11629453,155.96,155.88,0.04748329]
[1740393399102,6.412,155.93,155.88,0.04748329]
[1740393400606,6.4112,155.95,155.88,0.04748329]
[1740393400802,53.11943008,155.98,155.88,0.04748329]
[1740393401006,6.4101,155.97,155.88,6.4137]
[1740393401201,5.7203,155.98,155.91,0.04240574]
[1740393401803,6.4104,155.97,155.91,0.04240574]
[1740393402106,5.7203,155.98,155.91,0.04240574]
[1740393402807,6.4105,155.96,155.91,0.04240574]
[1740393403301,6.4114,155.94,155.91,0.04240574]
[1740393403507,36.75913008,155.95,155.87,8.82830591]
[1740393404004,6.4132,155.9,155.87,8.82830591]
[1740393404204,6.4132,155.9,155.86,8.82830591]
[1740393404807,0.04480535,155.9,155.86,8.8717182]
[1740393405201,6.45770535,155.9,155.86,8.8717182]
[1740393405401,0.04480535,155.9,155.86,8.8717182]
[1740393406309,42.47943008,155.98,155.87,15.82750034]
[1740393407210,6.4132,155.9,155.88,8.82830591]
[1740393407406,6.34170403,155.9,155.88,8.82830591]
[1740393407808,42.47943008,155.98,155.89,6.99919443]
[1740393408009,6.4124,155.92,155.89,6.99919443]
[1740393408410,5.7203,155.98,155.89,7.04270068]
[1740393409111,6.4112,155.95,155.89,8.87181216]
[1740393409305,5.7203,155.98,155.89,8.87181216]
[1740393409710,6.4113,155.94,155.89,8.87181216]
[1740393410315,6.4113,155.94,155.91,35.14606916]
[1740393411216,6.411,155.95,155.91,35.14606916]
[1740393411409,1.8668,155.98,155.91,78.31759924]
[1740393411611,1.9384,156.02,155.91,78.36360595]
[1740393411817,3.7937,156.02,155.91,71.90519924]
[1740393412116,3.7937,156.02,155.95,0.04708939]
[1740393412316,6.4092,156.0,155.95,0.04708939]
[1740393412617,6.4092,156.0,155.95,6.45778939]
[1740393412913,15.4092,156.0,155.95,6.45778939]
[1740393413516,6.4093,155.99,155.95,6.45778939]
[1740393413711,6.4093,155.99,155.95,41.60385855]
[1740393414316,6.4093,155.99,155.95,35.19315855]
[1740393414517,9.0,156.0,155.95,35.19315855]
[1740393414518,6.41,155.97,155.95,35.19315855]
[1740393414719,9.0,156.0,155.95,35.19315855]
[1740393415118,6.4104,155.97,155.95,35.19315855]
[1740393415509,9.0,156.0,155.95,35.19315855]
[1740393415510,9.0,156.0,155.95,8.8753953]
[1740393415715,15.4092,156.0,155.95,0.04708939]
[1740393415916,1.9655,156.03,155.95,0.04708939]
[1740393416320,1.9913,156.06,155.95,0.04708939]
[1740393416522,6.408,156.02,155.98,6.4094]
[1740393416718,1.9913,156.06,155.99,0.04629843]
[1740393418823,6.4079,156.03,155.99,6.45539843]
[1740393419017,1.9913,156.06,155.99,0.04629843]
[1740393421018,6.4077,156.03,155.99,6.45529843]
[1740393421224,3.8365,156.06,155.99,0.04629843]
[1740393421523,6.4074,156.04,156.0,6.4085]
[1740393421724,3.8365,156.06,155.99,0.04629843]
[1740393422122,36.75913008,156.05,155.99,0.04629843]
[1740393422523,3.8365,156.06,155.99,0.04629843]
[1740393422725,10.2431,156.06,156.02,6.4079]
[1740393423224,3.8365,156.06,156.02,0.04092734]
[1740393424123,10.2429,156.06,156.02,0.04092734]
[1740393424315,3.8365,156.06,156.02,0.04092734]
[1740393424518,10.2431,156.06,156.03,6.4073]
[1740393424825,3.8365,156.06,156.02,0.04092734]
[1740393425724,3.8365,156.06,156.0,23.26186325]
[1740393426124,6.4084,156.01,156.0,93.64939251]
[1740393426322,6.4084,156.01,156.0,84.48109251]
[1740393426522,6.4084,156.01,156.0,78.36889251]
[1740393427027,0.04113863,156.02,156.0,78.36889251]
[1740393427724,6.4084,156.01,156.0,78.36889251]
[1740393428224,0.04113863,156.02,156.0,78.36889251]
[1740393428726,0.04113863,156.02,155.99,0.04736989]
[1740393429318,6.4086,156.01,155.99,0.04736989]
[1740393429526,0.04113863,156.02,155.99,0.04736989]
[1740393430726,36.80026871,156.02,155.94,70.38752926]
[1740393430921,6.4109,155.95,155.94,70.38752926]
[1740393431829,0.04830738,155.96,155.93,264.33779357]
[1740393433019,6.4111,155.95,155.93,264.33779357]
[1740393433424,0.04830738,155.96,155.93,264.33779357]
[1740393433619,6.4113,155.94,155.93,264.33779357]
[1740393433826,0.04830738,155.96,155.93,264.33779357]
[1740393434228,6.4113,155.94,155.93,0.04108417]
[1740393435227,6.411,155.95,155.93,0.04108417]
[1740393435429,0.04830738,155.96,155.93,0.04108417]
[1740393435929,6.4113,155.94,155.93,0.04108417]
[1740393436231,6.4113,155.94,155.93,8.417e-05]
[1740393437833,0.04830738,155.96,155.93,8.417e-05]
[1740393438533,6.4112,155.95,155.93,8.417e-05]
[1740393439034,6.45890738,155.96,155.93,6.41178417]
[1740393439330,0.04830738,155.96,155.93,8.417e-05]
[1740393441236,6.4109,155.95,155.93,8.417e-05]
[1740393441732,0.04830738,155.96,155.93,8.417e-05]
[1740393442036,0.04830738,155.96,155.95,6.4109]
[1740393442733,1.8432,156.05,155.94,38.65923008]
[1740393443237,6.4083,156.02,155.94,38.65923008]
[1740393443634,6.4083,156.02,155.98,6.4095]
[1740393443936,0.04247229,156.0,155.98,6.4095]
[1740393444435,0.04247229,156.0,155.99,6.4092]
[1740393444937,0.04247229,156.0,155.97,36.75913008]
[1740393445144,0.04247229,156.0,155.98,6.4095]
[1740393446236,6.41,155.98,155.96,0.041865]
[1740393446943,6.41,155.97,155.96,0.041865]
[1740393447937,10.58247229,156.0,155.9,2.0141]
[1740393448136,36.75913008,155.98,155.86,1.8966]
[1740393448343,36.75913008,155.95,155.85,45.81079656]
[1740393448542,6.4141,155.88,155.85,45.81079656]
[1740393448842,10.56,155.92,155.85,45.81079656]
[1740393449142,6.4146,155.86,155.85,45.81079656]
[1740393450643,6.4142,155.87,155.85,45.81079656]
[1740393450938,0.04157611,155.9,155.84,2.05984681]
[1740393451942,0.04157611,155.9,155.85,36.75913008]
[1740393452644,0.04157611,155.9,155.84,2.05984681]
[1740393453247,6.4141,155.88,155.84,2.05984681]
[1740393453943,0.04157611,155.9,155.84,8.47504681]
[1740393454146,6.45457611,155.9,155.84,2.05984681]
[1740393454437,0.04157611,155.9,155.86,6.4144]
[1740393454742,6.45457611,155.9,155.84,2.05984681]
[1740393454934,6.45457611,155.9,155.85,6.4146]
[1740393455342,6.4138,155.88,155.84,2.05984681]
[1740393456241,6.4143,155.87,155.84,2.05984681]
[1740393456443,0.04157611,155.9,155.84,0.04574681]
[1740393456747,36.75913008,155.89,155.84,0.04574681]
[1740393456933,6.415,155.85,155.84,0.04574681]
[1740393459348,0.04217835,155.86,155.77,3.802]
[1740393459548,36.75913008,155.86,155.77,1.8881]
[1740393459948,6.4171,155.8,155.77,1.8881]
[1740393460345,36.75913008,155.86,155.77,1.8881]
[1740393460543,0.0470894,155.8,155.77,8.35233141]
[1740393460743,6.4167,155.81,155.77,8.306]
[1740393460940,0.04523282,155.8,155.77,8.34666487]
[1740393462852,6.46223282,155.8,155.77,1.92876487]
[1740393463453,36.8043629,155.8,155.69,1.9601]
[1740393463947,36.75913008,155.77,155.68,1.8817]
[1740393464440,1.2672,155.79,155.68,1.8817]
[1740393464645,6.4202,155.73,155.71,0.04507297]
[1740393465351,6.46490218,155.74,155.71,0.04507297]
[1740393466051,6.4203,155.72,155.71,0.04507297]
[1740393467152,0.04530218,155.74,155.71,0.04507297]
[1740393467753,6.46490218,155.74,155.71,0.04507297]
[1740393469160,6.46490218,155.74,155.71,6.46567297]
[1740393469356,6.46490218,155.74,155.71,0.04507297]
[1740393469859,6.4203,155.72,155.71,0.04507297]
[1740393471463,6.4203,155.72,155.71,7.297e-05]
[1740393474561,6.4203,155.72,155.56,42.43773008]
[1740393474562,6.4247,155.62,155.56,42.43773008]
[1740393474761,36.75913008,155.7,155.56,5.6786]
[1740393474966,6.4259,155.59,155.56,5.6786]
[1740393475163,10.52,155.66,155.56,5.6786]
[1740393475368,12.4808,155.66,155.56,5.6786]
[1740393475564,6.426,155.59,155.56,5.6786]
[1740393475965,6.426,155.59,155.56,5.7263819]
[1740393476168,6.47086335,155.59,155.56,5.7263819]
[1740393476567,0.04486335,155.59,155.56,5.7263819]
[1740393476975,0.04486335,155.59,155.56,12.1532819]
[1740393477471,0.04486335,155.59,155.56,5.7263819]
[1740393477870,0.04486335,155.59,155.56,0.0477819]
[1740393479172,6.4265,155.57,155.56,0.0477819]
[1740393479372,0.04486335,155.59,155.56,0.0477819]
[1740393479773,6.4265,155.57,155.56,0.0477819]
[1740393480481,6.4291,155.51,155.48,6.4302]
[1740393480681,10.54486335,155.59,155.48,6.4302]
[1740393480880,10.5,155.59,155.47,36.75913008]
[1740393481572,1.8489,155.58,155.45,5.8323]
[1740393481785,0.04526564,155.55,155.51,0.04153401]
[1740393482077,6.4291,155.51,155.43,6.4319]
[1740393482275,6.4291,155.51,155.42,2.24951094]
[1740393482276,10.56,155.51,155.42,0.35081094]
[1740393482672,36.75913008,155.5,155.42,0.35081094]
[1740393483176,0.04667125,155.48,155.44,0.04094173]
[1740393484676,0.04667125,155.48,155.45,6.4314]
[1740393484878,0.04667125,155.48,155.44,0.04094173]
[1740393485177,191.0,155.56,155.44,0.04094173]
[1740393485384,1.274,155.57,155.46,36.75913008]
[1740393485681,10.64,155.58,155.49,36.75913008]
[1740393486579,0.04073277,155.55,155.52,0.04077373]
[1740393487577,0.04073277,155.55,155.53,6.4279]
[1740393489082,0.04073277,155.55,155.54,6.4277]
[1740393489479,1.9034,155.61,155.52,0.04077373]
[1740393490181,1.9034,155.61,155.57,6.4263]
[1740393490477,38.08183008,155.67,155.54,36.75913008]
[1740393490682,0.04447352,155.61,155.6,6.4252]
[1740393491081,4.0094,155.66,155.6,6.4252]
[1740393491278,0.04594745,155.62,155.61,6.4249]
[1740393491678,2.0007,155.71,155.6,36.75913008]
[1740393492080,1.9469,155.72,155.61,2.0068]
[1740393492287,1.9469,155.72,155.63,36.75913008]
[1740393492483,69.14964285,155.75,155.66,36.75913008]
[1740393492885,0.04425398,155.72,155.71,6.4207]
[1740393493479,69.14964285,155.79,155.75,6.419]
[1740393494485,69.14964285,155.79,155.69,36.75913008]
[1740393494486,69.14964285,155.79,155.77,6.4182]
[1740393494790,69.198496,155.79,155.77,6.4182]
[1740393494985,69.198496,155.79,155.75,0.04800438]
[1740393495185,69.198496,155.79,155.78,6.4178]
[1740393495891,60.016796,155.79,155.78,6.4178]
[1740393496192,0.04885315,155.79,155.78,6.4178]
[1740393496685,2.0208,155.87,155.75,36.80713446]
[1740393496885,2.0208,155.87,155.85,6.415]
[1740393497085,59.96794285,155.9,155.78,36.75913008]
[1740393497286,59.96794285,155.9,155.79,1.9871]
[1740393497593,59.96794285,155.9,155.8,60.10763066]
[1740393497891,0.04403562,155.86,155.82,0.04234054]
[1740393498291,0.04403562,155.86,155.85,6.4146]
[1740393499093,59.96794285,155.9,155.83,60.10763066]
[1740393499283,59.96794285,155.9,155.89,6.4133]
[1740393499993,3.8462,155.96,155.86,60.10763066]
[1740393500394,0.04207033,155.93,155.89,0.04927687]
[1740393500988,0.04207033,155.93,155.92,6.4121]
[1740393503196,0.04207033,155.93,155.9,6.4127]
[1740393503400,0.04207033,155.93,155.89,0.04927687]
[1740393503599,0.04207033,155.93,155.89,60.15690753]
[1740393504897,251.10763066,155.92,155.62,192.0]
[1740393505197,60.10763066,155.8,155.68,60.10763066]
[1740393505501,71.16763066,155.8,155.68,60.10763066]
[1740393505706,11.06,155.8,155.68,60.10763066]
[1740393505897,11.06,155.8,155.71,66.52823066]
[1740393506106,0.04171235,155.76,155.72,2.01442496]
[1740393507200,6.4159,155.83,155.72,2.01442496]
[1740393507404,6.4159,155.83,155.72,1.9683]
[1740393507799,11.06,155.85,155.72,1.9683]
[1740393508400,0.04511802,155.8,155.77,0.04935722]
[1740393510908,0.04511802,155.8,155.77,6.46755722]
[1740393511607,0.04511802,155.8,155.77,0.04935722]
[1740393512010,191.0,155.79,155.58,49.50218298]
[1740393512213,60.10763066,155.73,155.59,5.02732589]
[1740393512413,60.10763066,155.7,155.6,1.8799]
[1740393512612,6.4232,155.66,155.6,1.8799]
[1740393513014,60.10763066,155.7,155.6,1.8799]
[1740393513309,0.04349895,155.65,155.61,0.04712833]
[1740393515115,6.4237,155.64,155.61,0.04712833]
[1740393515316,0.04349895,155.65,155.61,0.04712833]
[1740393517215,60.10763066,155.73,155.61,0.04712833]
[1740393517414,60.10763066,155.73,155.62,60.10763066]
[1740393517610,60.10763066,155.73,155.6,169.9399]
[1740393517611,6.4196,155.74,155.65,60.10763066]
[1740393517810,1.9721,155.78,155.65,60.10763066]
[1740393518218,60.10763066,155.79,155.65,60.10763066]
[1740393518417,0.04854652,155.73,155.7,0.04245653]
[1740393519119,6.46884652,155.73,155.7,0.04245653]
[1740393519317,0.04854652,155.73,155.7,0.04245653]
[1740393519720,6.4203,155.72,155.7,0.04245653]
[1740393519910,0.04854652,155.73,155.7,0.04245653]
[1740393520523,6.4207,155.71,155.7,0.04245653]
[1740393521524,6.4204,155.72,155.7,0.04245653]
[1740393521820,60.10763066,155.82,155.7,60.15008719]
[1740393522023,6.4178,155.79,155.71,3.9114]
[1740393522222,6.4178,155.79,155.74,6.4194]
[1740393522423,137.10953761,155.85,155.71,3.9114]
[1740393522619,77.00190695,155.85,155.75,6.4187]
[1740393523122,0.04456793,155.82,155.78,0.04710581]
[1740393523422,6.4169,155.81,155.78,0.04710581]
[1740393523622,0.04456793,155.82,155.78,0.04710581]
[1740393525526,0.04456793,155.82,155.78,6.46460581]
[1740393526119,6.46086793,155.82,155.78,6.46460581]
[1740393526522,0.04456793,155.82,155.8,6.4168]
[1740393527419,1.9423,155.9,155.81,6.4166]
[1740393527819,6.4146,155.86,155.81,6.4166]
[1740393528223,60.10763066,155.92,155.8,61.96873066]
[1740393528417,6.4143,155.87,155.82,6.46548525]
[1740393528717,6.4143,155.87,155.82,6.4161]
[1740393528918,6.4135,155.89,155.84,6.4153]
[1740393529322,60.10763066,155.91,155.85,0.04724562]
[1740393529524,6.4146,155.86,155.85,0.04724562]
[1740393529728,60.10763066,155.88,155.76,60.10763066]
[1740393529929,60.10763066,155.91,155.76,60.10763066]
[1740393530121,6.4165,155.82,155.76,66.52623066]
[1740393531023,60.10763066,155.91,155.78,6.4178]
[1740393531024,0.04120208,155.81,155.78,6.4178]
[1740393531223,60.10763066,155.91,155.78,6.4178]
[1740393531429,0.04316221,155.81,155.78,6.46059657]
[1740393531730,0.04106916,155.81,155.78,0.04660864]
[1740393533030,6.45796916,155.81,155.78,0.04660864]
[1740393533531,0.04106916,155.81,155.78,0.04660864]
[1740393534231,6.45806916,155.81,155.78,0.04660864]
[1740393535027,6.417,155.8,155.78,0.04660864]
[1740393536532,0.04106916,155.81,155.79,6.4173]
[1740393538036,6.415,155.85,155.79,60.10763066]
[1740393538931,60.10763066,155.88,155.74,65.97543066]
[1740393539138,3.9192,155.87,155.8,0.04836873]
[1740393539532,6.4166,155.81,155.8,0.04836873]
[1740393540428,71.22763066,155.85,155.71,60.10763066]
[1740393540734,11.12,155.85,155.76,6.4183]
[1740393540937,11.12,155.85,155.74,60.10763066]
[1740393541131,1.8592,155.86,155.74,60.10763066]
[1740393541530,6.46241671,155.82,155.78,0.04397848]
[1740393543334,6.46241671,155.82,155.78,6.46177848]
[1740393543729,0.04601671,155.82,155.78,6.46177848]
[1740393543931,0.04601671,155.82,155.78,0.04397848]
[1740393544129,0.04601671,155.82,155.8,60.10763066]
[1740393544536,71.50104916,155.93,155.8,60.10763066]
[1740393544834,71.50104916,155.93,155.83,60.10763066]
[1740393545030,6.4129,155.91,155.83,60.10763066]
[1740393545331,71.50104916,155.93,155.83,60.10763066]
[1740393545633,6.4125,155.91,155.86,6.46320954]
[1740393546034,71.50104916,155.93,155.86,0.04860954]
[1740393546248,69.58054916,155.93,155.86,0.04860954]
[1740393546537,69.58054916,155.93,155.87,6.4141]
[1740393546741,1.8922,155.93,155.86,0.04860954]
[1740393547537,6.4138,155.88,155.86,0.04860954]
[1740393547834,1.8922,155.93,155.86,0.04860954]
[1740393548034,6.4141,155.87,155.86,0.04860954]
[1740393548337,1.8922,155.93,155.86,0.04860954]
[1740393548537,1.8922,155.93,155.86,6.46300954]
[1740393548538,6.4129,155.91,155.86,6.46300954]
[1740393548729,1.8922,155.93,155.86,0.04860954]
[1740393549137,6.4128,155.91,155.86,6.46290954]
[1740393549439,60.10763066,155.92,155.86,9.54e-06]
[1740393549835,1.8922,155.93,155.86,9.54e-06]
[1740393550443,0.04912976,155.91,155.86,9.54e-06]
[1740393550942,6.46192976,155.91,155.86,6.41430954]
[1740393551145,0.04912976,155.91,155.86,9.54e-06]
[1740393551545,6.4136,155.89,155.86,9.54e-06]
[1740393552046,0.04912976,155.91,155.86,9.54e-06]
[1740393552246,6.413,155.9,155.86,6.41450954]
[1740393552547,0.04912976,155.91,155.86,9.54e-06]
[1740393553136,0.04912976,155.91,155.86,60.1076402]
[1740393553547,0.04912976,155.91,155.87,3.8012]
[1740393553842,0.04912976,155.91,155.9,6.4129]
[1740393556143,0.04912976,155.91,155.86,60.1076402]
[1740393556442,0.04912976,155.91,155.86,9.54e-06]
[1740393556841,6.4136,155.89,155.86,9.54e-06]
[1740393557036,0.04912976,155.91,155.86,9.54e-06]
[1740393557445,1.95642976,155.91,155.86,9.54e-06]
[1740393557745,6.4141,155.87,155.86,9.54e-06]
[1740393559646,1.8964,155.9,155.86,9.54e-06]
[1740393560249,6.4141,155.87,155.86,9.54e-06]
[1740393561755,1.8964,155.9,155.86,9.54e-06]
[1740393562443,6.4141,155.87,155.86,9.54e-06]
[1740393562847,1.8964,155.9,155.86,9.54e-06]
[1740393563053,6.4141,155.87,155.86,9.54e-06]
[1740393564949,1.8964,155.9,155.86,9.54e-06]
[1740393565148,6.414,155.88,155.86,9.54e-06]
[1740393565344,1.8964,155.9,155.86,9.54e-06]
[1740393565954,6.4141,155.87,155.86,9.54e-06]
[1740393566350,6.4134,155.89,155.86,9.54e-06]
[1740393566554,0.04912976,155.91,155.86,9.54e-06]
[1740393567452,6.4132,155.9,155.86,6.41450954]
[1740393568253,0.04912976,155.91,155.87,6.4141]
[1740393568460,0.04912976,155.91,155.88,60.1094418]
[1740393568960,0.04912976,155.91,155.9,6.4129]
[1740393570651,67.68834916,155.98,155.92,6.4117]
[1740393570652,74.09834916,155.98,155.92,6.4117]
[1740393570961,67.68834916,155.98,155.88,60.1094418]
[1740393571554,67.68834916,155.98,155.89,6.4129]
[1740393571756,67.68834916,155.98,155.85,60.1094418]
[1740393571957,67.68834916,155.98,155.92,0.0409206]
[1740393574059,6.41,155.98,155.93,6.4114]
[1740393574263,1.9533,156.0,155.92,0.0409206]
[1740393574466,61.9647418,156.03,155.92,0.0409206]
[1740393574760,6.4089,156.0,155.95,6.4106]
[1740393574959,6.4089,156.0,155.96,0.04164468]
[1740393575266,6.4097,155.98,155.96,0.04164468]
[1740393575569,61.9647418,156.03,155.96,0.04164468]
[1740393576969,6.4087,156.01,155.96,0.04164468]
[1740393577363,61.9647418,156.03,155.96,6.45204468]
[1740393577763,6.4084,156.01,155.96,6.45204468]
[1740393578864,1.8553,156.03,155.96,6.45204468]
[1740393579062,6.4088,156.0,155.96,6.45204468]
[1740393580367,1.8553,156.03,155.96,6.45204468]
[1740393580572,6.4093,155.99,155.96,6.45204468]
[1740393581373,6.4093,155.99,155.96,0.04164468]
[1740393581576,6.4096,155.98,155.96,0.04164468]
[1740393582078,36.93586494,156.02,155.96,0.04164468]
[1740393582273,6.41,155.97,155.96,0.04164468]
[1740393589070,6.41,155.97,155.96,4.468e-05]
[1740393589276,36.93586494,155.99,155.9,167.92]
[1740393589482,6.4125,155.91,155.9,167.92]
[1740393594389,0.04296195,155.92,155.9,167.92]
[1740393595091,6.4125,155.91,155.9,167.92]
[1740393595894,6.45516195,155.92,155.9,167.92]
[1740393597793,0.04296195,155.92,155.9,167.92]
[1740393597996,0.04296195,155.92,155.89,6.45737257]
[1740393599193,0.04296195,155.92,155.9,6.4126]
[1740393599397,1.8553,156.03,155.9,36.93586494]
[1740393599894,6.4097,155.98,155.93,6.4114]
[1740393600294,36.93586494,156.02,155.88,36.93586494]
[1740393600490,36.93586494,156.02,155.94,0.04788427]
[1740393600889,6.4109,155.95,155.94,0.04788427]
[1740393601191,36.93586494,155.99,155.85,206.76036494]
[1740393601396,36.93586494,155.96,155.85,206.76036494]
[1740393601693,36.93586494,155.96,155.85,169.8245]
[1740393601994,36.93586494,155.93,155.85,167.88]
[1740393602397,0.04877263,155.91,155.87,0.04261007]
[1740393602594,6.4137,155.88,155.87,0.04261007]
[1740393602792,0.04877263,155.91,155.87,0.04261007]
[1740393603191,6.4134,155.89,155.87,0.04261007]
[1740393603701,6.4135,155.89,155.87,0.04261007]
[1740393604401,0.04877263,155.91,155.87,0.04261007]
[1740393604402,0.04877263,155.91,155.88,6.4135]
[1740393604899,6.46157263,155.91,155.87,6.45671007]
[1740393605303,0.04877263,155.91,155.87,0.04261007]
[1740393605900,6.4137,155.88,155.87,0.04261007]
[1740393607606,10.74,155.9,155.79,1.9808]
[1740393607799,36.93586494,155.88,155.75,2.0141]
[1740393607999,36.93586494,155.85,155.75,2.0141]
[1740393608197,36.93586494,155.85,155.74,2.0055]
[1740393608406,36.93586494,155.82,155.73,167.9]
[1740393608706,36.93586494,155.79,155.71,8.73938629]
[1740393609009,3.7418,155.78,155.71,8.73938629]
[1740393609307,36.93586494,155.76,155.7,26.60665881]
[1740393609608,6.4207,155.71,155.7,6.30125881]
[1740393610001,10.76,155.72,155.69,70.90424949]
[1740393610204,36.93586494,155.7,155.69,70.94858127]
[1740393610511,6.422,155.69,155.61,167.9]
[1740393610701,36.93586494,155.7,155.61,167.9]
[1740393611306,6.4228,155.66,155.58,1.8864]
[1740393611504,36.93586494,155.67,155.55,43.36286494]
[1740393611705,36.93586494,155.67,155.55,36.93586494]
[1740393611901,0.04113382,155.64,155.6,0.04623451]
[1740393615008,36.93586494,155.73,155.61,36.93586494]
[1740393615206,6.4195,155.75,155.64,36.93586494]
[1740393615611,6.4195,155.75,155.67,6.4223]
[1740393616112,0.04618465,155.73,155.69,0.04146652]
[1740393617413,6.46628465,155.73,155.69,0.04146652]
[1740393617813,43.40214959,155.73,155.69,0.04146652]
[1740393618016,6.4211,155.7,155.62,1.8714]
[1740393618509,6.4216,155.69,155.61,6.4248]
[1740393619215,0.04324934,155.67,155.63,0.04403928]
[1740393619914,0.04324934,155.67,155.63,6.46803928]
[1740393622917,0.04324934,155.67,155.63,0.04403928]
[1740393623512,6.4233,155.65,155.63,0.04403928]
[1740393624009,6.4236,155.64,155.63,0.04403928]
[1740393624414,6.4236,155.64,155.63,3.928e-05]
[1740393624907,43.35946494,155.64,155.63,3.928e-05]
[1740393625719,6.4236,155.64,155.63,3.928e-05]
[1740393629119,36.97911428,155.67,155.53,4.0377]
[1740393629415,36.93586494,155.62,155.53,4.0377]
[1740393629619,36.93586494,155.62,155.55,6.427]
[1740393629620,6.4254,155.6,155.55,6.427]
[1740393629915,36.93586494,155.62,155.53,4.0377]
[1740393630317,0.04901374,155.59,155.56,0.04280078]
[1740393631826,191.0,155.66,155.56,0.04280078]
[1740393632014,6.4237,155.64,155.53,4.0377]
[1740393632216,191.0,155.66,155.53,4.0377]
[1740393632610,191.0,155.66,155.55,36.93586494]
[1740393632820,36.93586494,155.67,155.55,36.93586494]
[1740393633120,6.4217,155.69,155.59,0.04230114]
[1740393633421,6.4217,155.69,155.59,1.9157]
[1740393633720,191.0,155.72,155.61,36.93586494]
[1740393633922,73.23391374,155.73,155.64,36.93586494]
[1740393634317,0.04057419,155.7,155.69,6.4213]
[1740393634510,67.74128101,155.76,155.67,36.98321442]
[1740393634717,10.68,155.77,155.68,1.9157]
[1740393634911,36.93586494,155.79,155.68,1.9157]
[1740393635326,6.4182,155.78,155.68,1.9157]
[1740393635820,0.04680893,155.75,155.71,0.04640938]
[1740393637221,36.93586494,155.73,155.63,1.8472]
[1740393637422,47.61586494,155.73,155.63,1.8472]
[1740393637620,36.93586494,155.7,155.62,6.4244]
[1740393637812,36.93586494,155.7,155.59,3.8346]
[1740393638122,6.4225,155.67,155.62,6.4243]
[1740393638423,36.93586494,155.7,155.59,3.8346]
[1740393638623,0.04661125,155.66,155.63,0.04886968]
[1740393638826,0.04661125,155.66,155.64,6.4235]
[1740393639019,0.04661125,155.66,155.63,0.04886968]
[1740393639416,0.04661125,155.66,155.65,6.4232]
[1740393640328,6.4205,155.72,155.64,1.9746]
[1740393640528,10.68,155.75,155.64,1.9746]
[1740393640728,36.93586494,155.76,155.64,38.91046494]
[1740393640924,6.4196,155.74,155.7,6.4208]
[1740393641126,6.4196,155.74,155.64,38.91046494]
[1740393641523,0.04189567,155.71,155.67,0.04393602]
[1740393641724,6.4184,155.77,155.67,0.04393602]
[1740393641924,78.40128101,155.78,155.67,0.04393602]
[1740393641925,78.40128101,155.78,155.67,36.93586494]
[1740393642122,78.40128101,155.78,155.68,3.7615]
[1740393642325,84.81918101,155.78,155.68,3.7615]
[1740393642524,67.74128101,155.78,155.68,3.7615]
[1740393642832,67.74128101,155.78,155.7,36.93586494]
[1740393643026,0.04279207,155.75,155.71,0.04771274]
[1740393643222,67.74128101,155.81,155.7,36.93586494]
[1740393643422,67.74128101,155.81,155.73,36.93586494]
[1740393643626,67.74128101,155.81,155.75,60.14713023]
[1740393643927,64.68148101,155.81,155.8,6.417]
[1740393644329,61.62208101,155.81,155.8,6.417]
[1740393644531,58.56268101,155.81,155.8,6.417]
[1740393646330,0.02054736,155.82,155.8,6.417]
[1740393646931,1.891,155.91,155.79,0.04091286]
[1740393647129,103.58308568,155.92,155.78,228.24713023]
[1740393647328,6.4132,155.9,155.84,6.4151]
[1740393647524,103.58308568,155.92,155.78,228.24713023]
[1740393647834,6.4143,155.87,155.78,228.24713023]
[1740393648133,60.14713023,155.9,155.83,0.0488317]
[1740393649227,6.4154,155.84,155.83,0.0488317]
[1740393649534,60.14713023,155.9,155.83,0.0488317]
[1740393650031,6.415,155.85,155.83,0.0488317]
[1740393651133,6.4154,155.84,155.83,0.0488317]
[1740393651433,60.14713023,155.9,155.83,0.0488317]
[1740393652234,6.4145,155.87,155.83,0.0488317]
[1740393652433,6.4145,155.87,155.83,6.4645317]
[1740393653135,60.14713023,155.9,155.83,0.0488317]
[1740393653336,1.9255,155.89,155.83,0.0488317]
[1740393653836,6.4154,155.84,155.83,0.0488317]
[1740393654939,1.9255,155.89,155.83,0.0488317]
[1740393655439,6.4148,155.86,155.83,0.0488317]
[1740393655738,60.14713023,155.9,155.83,0.0488317]
[1740393655939,6.4141,155.88,155.84,6.4154]
[1740393656136,60.14713023,155.9,155.83,0.0488317]
[1740393656539,6.4143,155.87,155.83,6.4643317]
[1740393658840,72.64553023,155.93,155.83,0.0488317]
[1740393659040,29.5141653,157.98,155.84,60.14713023]
[1740393659041,60.14713023,155.96,155.84,60.14713023]